fUST/lending_fUST_20250225
["ID","MTS","AMOUNT","RATE_DAILY","PERIOD"]
[354344688,1740436242947,-216.97,0.00014109,2]
[354344689,1740436242956,-289.55,0.00014109,2]
[354344690,1740436242966,-670.49,0.00014109,2]
[354344691,1740436242976,-1660.95,0.00014109,2]
[354344692,1740436242985,-500.0,0.00014109,2]
[354344693,1740436242996,-500.0,0.00014109,2]
[354344694,1740436243006,-500.0,0.00014109,2]
[354344695,1740436243016,-617.72,0.00014109,2]
[354344696,1740436243026,-500.0,0.00014109,2]
[354344697,1740436243035,-267.83,0.00014109,2]
[354344698,1740436243045,-500.0,0.00014109,2]
[354344699,1740436243055,-794.36,0.00014109,2]
[354344700,1740436243064,-500.0,0.00014109,2]
[354344701,1740436243074,-614.56,0.00014109,2]
[354344702,1740436243084,-500.0,0.00014109,2]
[354344703,1740436243094,-500.0,0.00014109,2]
[354344704,1740436243103,-500.0,0.00014109,2]
[354344705,1740436243113,-500.0,0.00014109,2]
[354344706,1740436243122,-466.44,0.00014109,2]
[354344707,1740436243132,-500.0,0.00014109,2]
[354344708,1740436243141,-850.96,0.00014109,2]
[354344709,1740436243151,-500.0,0.00014109,2]
[354344710,1740436243161,-500.0,0.00014109,2]
[354344711,1740436243171,-500.0,0.00014109,2]
[354344712,1740436243180,-524.19,0.00014109,2]
[354344713,1740436243189,-500.0,0.00014109,2]
[354344714,1740436243199,-22656.37,0.00014109,2]
[354344715,1740436243208,-500.0,0.00014109,2]
[354344716,1740436243222,-500.0,0.00014109,2]
[354344718,1740436243231,-500.0,0.00014109,2]
[354344719,1740436243242,-776.51,0.00014109,2]
[354344720,1740436243251,-500.0,0.00014109,2]
[354344722,1740436243260,-500.0,0.00014109,2]
[354344724,1740436243270,-500.0,0.00014109,2]
[354344727,1740436243279,-500.0,0.00014109,2]
[354344730,1740436243289,-509.03,0.00014109,2]
[354344733,1740436243299,-1193.82,0.00014109,2]
[354344736,1740436243308,-356.27,0.00014109,2]
[354344739,1740436243318,-803.20075499,0.00014136,2]
[354344743,1740436243327,-500.0,0.00014191,2]
[354344746,1740436243338,-286.8393178,0.00014191,2]
[354344750,1740436243350,-500.0,0.00014191,2]
[354344753,1740436243359,-500.0,0.00014191,2]
[354344755,1740436243368,-500.0,0.00014191,2]
[354344757,1740436243378,-500.0,0.00014191,2]
[354344760,1740436243387,-500.0,0.00014191,2]
[354344763,1740436243396,-670.49,0.00014191,2]
[354344766,1740436243406,-1660.95,0.00014191,2]
[354344768,1740436243415,-500.0,0.00014191,2]
[354344770,1740436243424,-500.0,0.00014191,2]
[354344771,1740436243434,-500.0,0.00014191,2]
[354344772,1740436243443,-500.0,0.00014191,2]
[354344773,1740436243452,-500.0,0.00014191,2]
[354344774,1740436243462,-794.36,0.00014191,2]
[354344775,1740436243471,-500.0,0.00014191,2]
[354344776,1740436243480,-614.56,0.00014191,2]
[354344777,1740436243489,-408.0,0.00014191,2]
[354344778,1740436243499,-500.0,0.00014191,2]
[354344779,1740436243509,-500.0,0.00014191,2]
[354344780,1740436243517,-500.0,0.00014191,2]
[354344781,1740436243526,-583.11,0.00014191,2]
[354344782,1740436243536,-850.96,0.00014191,2]
[354344783,1740436243544,-500.0,0.00014191,2]
[354344784,1740436243554,-500.0,0.00014191,2]
[354344785,1740436243563,-500.0,0.00014191,2]
[354344786,1740436243573,-524.19,0.00014191,2]
[354344787,1740436243582,-500.0,0.00014191,2]
[354344788,1740436243591,-22656.37,0.00014191,2]
[354344789,1740436243600,-295.28,0.00014191,2]
[354344790,1740436243609,-500.0,0.00014191,2]
[354344791,1740436243619,-500.0,0.00014191,2]
[354344792,1740436243628,-776.51,0.00014191,2]
[354344793,1740436243637,-500.0,0.00014191,2]
[354344794,1740436243647,-500.0,0.00014191,2]
[354344795,1740436243656,-500.0,0.00014191,2]
[354344796,1740436243666,-437.93,0.00014191,2]
[354344797,1740436243675,-509.03,0.00014191,2]
[354344798,1740436243684,-1193.82,0.00014191,2]
[354344799,1740436243694,-375.01,0.00014273,2]
[354344800,1740436243703,-500.0,0.00014273,2]
[354344801,1740436243712,-500.0,0.00014273,2]
[354344802,1740436243722,-500.0,0.00014273,2]
[354344803,1740436243732,-500.0,0.00014273,2]
[354344804,1740436243743,-500.0,0.00014273,2]
[354344805,1740436243753,-670.49,0.00014273,2]
[354344806,1740436243763,-1660.95,0.00014273,2]
[354344807,1740436243772,-500.0,0.00014273,2]
[354344808,1740436243782,-500.0,0.00014273,2]
[354344809,1740436243792,-500.0,0.00014273,2]
[354344810,1740436243801,-500.0,0.00014273,2]
[354344811,1740436243811,-563.62,0.00014273,2]
[354344812,1740436243822,-794.36,0.00014273,2]
[354344813,1740436243831,-500.0,0.00014273,2]
[354344815,1740436243841,-614.56,0.00014273,2]
[354344816,1740436243852,-484.4,0.00014273,2]
[354344818,1740436243862,-500.0,0.00014273,2]
[354344820,1740436243872,-343.59,0.00014273,2]
[354344822,1740436243883,-850.96,0.00014273,2]
[354344824,1740436243893,-500.0,0.00014273,2]
[354344826,1740436243903,-500.0,0.00014273,2]
[354344828,1740436243913,-500.0,0.00014273,2]
[354344830,1740436243923,-524.19,0.00014273,2]
[354344832,1740436243932,-500.0,0.00014273,2]
[354344834,1740436243942,-22656.37,0.00014273,2]
[354344836,1740436243952,-500.0,0.00014273,2]
[354344837,1740436243962,-500.0,0.00014273,2]
[354344838,1740436243971,-776.51,0.00014273,2]
[354344839,1740436243980,-500.0,0.00014273,2]
[354344840,1740436243990,-500.0,0.00014273,2]
[354344841,1740436244002,-500.0,0.00014273,2]
[354344842,1740436244011,-509.03,0.00014273,2]
[354344844,1740436244021,-1193.82,0.00014273,2]
[354344845,1740436244030,-1000.0,0.00014308,2]
[354344847,1740436244040,-1000.0,0.00014321,2]
[354344849,1740436244049,-621.92,0.00014356,2]
[354344851,1740436244059,-500.0,0.00014356,2]
[354344852,1740436244068,-446.5,0.00014356,2]
[354344853,1740436244077,-500.0,0.00014356,2]
[354344855,1740436244087,-500.0,0.00014356,2]
[354344857,1740436244096,-670.49,0.00014356,2]
[354344859,1740436244106,-1660.95,0.00014356,2]
[354344861,1740436244115,-500.0,0.00014356,2]
[354344863,1740436244125,-500.0,0.00014356,2]
[354344864,1740436244134,-500.0,0.00014356,2]
[354344866,1740436244144,-500.0,0.00014356,2]
[354344868,1740436244153,-794.36,0.00014356,2]
[354344870,1740436244163,-341.56,0.00014356,2]
[354344871,1740436244172,-614.56,0.00014356,2]
[354344872,1740436244181,-500.0,0.00014356,2]
[354344873,1740436244191,-850.96,0.00014356,2]
[354344874,1740436244201,-500.0,0.00014356,2]
[354344875,1740436244212,-500.0,0.00014356,2]
[354344876,1740436244225,-500.0,0.00014356,2]
[354344877,1740436244234,-524.19,0.00014356,2]
[354344878,1740436244245,-500.0,0.00014356,2]
[354344879,1740436244256,-22656.37,0.00014356,2]
[354344880,1740436244265,-500.0,0.00014356,2]
[354344881,1740436244274,-500.0,0.00014356,2]
[354344882,1740436244284,-776.51,0.00014356,2]
[354344883,1740436244293,-179.59,0.00014356,2]
[354344884,1740436244303,-500.0,0.00014356,2]
[354344885,1740436244313,-500.0,0.00014356,2]
[354344886,1740436244322,-509.03,0.00014356,2]
[354344887,1740436244332,-1193.82,0.00014356,2]
[354344888,1740436244342,-500.0,0.00014438,2]
[354344889,1740436244352,-500.0,0.00014438,2]
[354344890,1740436244363,-206.34,0.00014438,2]
[354344891,1740436244373,-670.49,0.00014438,2]
[354344892,1740436244382,-1660.95,0.00014438,2]
[354344893,1740436244392,-500.0,0.00014438,2]
[354344894,1740436244401,-337.74,0.00014438,2]
[354344895,1740436244411,-500.0,0.00014438,2]
[354344896,1740436244420,-192.32,0.00014438,2]
[354344897,1740436244430,-794.36,0.00014438,2]
[354344898,1740436244440,-614.56,0.00014438,2]
[354344899,1740436244449,-500.0,0.00014438,2]
[354344900,1740436244459,-850.96,0.00014438,2]
[354344901,1740436244468,-500.0,0.00014438,2]
[354344902,1740436244593,-500.0,0.00014438,2]
[354344903,1740436244604,-151.71,0.00014438,2]
[354344904,1740436244615,-524.19,0.00014438,2]
[354344905,1740436244624,-500.0,0.00014438,2]
[354344906,1740436244635,-22656.37,0.00014438,2]
[354344907,1740436244644,-500.0,0.00014438,2]
[354344908,1740436244654,-500.0,0.00014438,2]
[354344909,1740436244664,-776.51,0.00014438,2]
[354344910,1740436244674,-495.14,0.00014438,2]
[354344911,1740436244683,-500.0,0.00014438,2]
[354344912,1740436244693,-509.03,0.00014438,2]
[354344913,1740436244702,-1193.82,0.00014438,2]
[354344914,1740436244712,-538.45,0.0001452,2]
[354344915,1740436244721,-500.0,0.0001452,2]
[354344916,1740436244730,-670.49,0.0001452,2]
[354344917,1740436244740,-1660.95,0.0001452,2]
[354344918,1740436244750,-500.0,0.0001452,2]
[354344919,1740436244760,-500.0,0.0001452,2]
[354344920,1740436244770,-794.36,0.0001452,2]
[354344921,1740436244780,-614.56,0.0001452,2]
[354344922,1740436244790,-569.08,0.0001452,2]
[354344923,1740436244800,-850.96,0.0001452,2]
[354344924,1740436244810,-500.0,0.0001452,2]
[354344925,1740436244821,-500.0,0.0001452,2]
[354344926,1740436244830,-524.19,0.0001452,2]
[354344927,1740436244840,-500.0,0.0001452,2]
[354344928,1740436244849,-22656.37,0.0001452,2]
[354344929,1740436244858,-500.0,0.0001452,2]
[354344930,1740436244869,-500.0,0.0001452,2]
[354344931,1740436244879,-776.51,0.0001452,2]
[354344932,1740436244888,-500.0,0.0001452,2]
[354344933,1740436244898,-509.03,0.0001452,2]
[354344934,1740436244907,-1193.82,0.0001452,2]
[354344935,1740436244917,-500.0,0.00014602,2]
[354344936,1740436244927,-670.49,0.00014602,2]
[354344937,1740436244936,-1660.95,0.00014602,2]
[354344938,1740436244946,-500.0,0.00014602,2]
[354344939,1740436244956,-362.08089524,0.00014602,2]
[354344940,1740436244966,-794.36,0.00014602,2]
[354344941,1740436244975,-614.56,0.00014602,2]
[354344942,1740436244985,-850.96,0.00014602,2]
[354344943,1740436244996,-500.0,0.00014602,2]
[354344944,1740436245006,-500.0,0.00014602,2]
[354344945,1740436245016,-524.19,0.00014602,2]
[354344946,1740436245025,-500.0,0.00014602,2]
[354344947,1740436245035,-22656.37,0.00014602,2]
[354344948,1740436245044,-500.0,0.00014602,2]
[354344949,1740436245054,-500.0,0.00014602,2]
[354344950,1740436245063,-776.51,0.00014602,2]
[354344951,1740436245072,-500.0,0.00014602,2]
[354344952,1740436245082,-509.03,0.00014602,2]
[354344953,1740436245091,-1193.82,0.00014602,2]
[354344954,1740436245101,-345.531,0.0001461,2]
[354344955,1740436245110,-1092.27895208,0.00014667,2]
[354344956,1740436245120,-500.0,0.00014684,2]
[354344957,1740436245129,-670.49,0.00014684,2]
[354344958,1740436245139,-1660.95,0.00014684,2]
[354344959,1740436245149,-500.0,0.00014684,2]
[354344960,1740436245159,-794.36,0.00014684,2]
[354344961,1740436245169,-614.56,0.00014684,2]
[354344962,1740436245178,-850.96,0.00014684,2]
[354344963,1740436245187,-500.0,0.00014684,2]
[354344964,1740436245197,-500.0,0.00014684,2]
[354344965,1740436245207,-524.19,0.00014684,2]
[354344966,1740436245220,-500.0,0.00014684,2]
[354344967,1740436245229,-22656.37,0.00014684,2]
[354344968,1740436245239,-500.0,0.00014684,2]
[354344969,1740436245250,-500.0,0.00014684,2]
[354344970,1740436245260,-776.51,0.00014684,2]
[354344971,1740436245269,-500.0,0.00014684,2]
[354344972,1740436245279,-509.03,0.00014684,2]
[354344973,1740436245288,-769.07657388,0.00014684,2]
[354344974,1740436245554,-500.0,0.00013779,2]
[354344975,1740436245564,-424.74342612,0.00014684,2]
[354344976,1740436245574,-151.0,0.000147,2]
[354344977,1740436245584,-460.44,0.00014767,2]
[354344978,1740436245594,-670.49,0.00014767,2]
[354344979,1740436245604,-1660.95,0.00014767,2]
[354344980,1740436245614,-500.0,0.00014767,2]
[354344981,1740436245623,-439.65285461,0.00014767,2]
[354344982,1740436245635,-174.90714539,0.00014767,2]
[354344983,1740436245645,-850.96,0.00014767,2]
[354344984,1740436245655,-381.55,0.00014767,2]
[354344985,1740436245665,-500.0,0.00014767,2]
[354344986,1740436245675,-524.19,0.00014767,2]
[354344987,1740436245684,-500.0,0.00014767,2]
[354344989,1740436245694,-2565.30952812,0.00014767,2]
[354345025,1740436245815,-495.355,0.00013698,2]
[354345035,1740436245862,-4.645,0.00013698,2]
[354345037,1740436245872,-500.0,0.00013698,2]
[354345038,1740436245882,-425.355,0.00013698,2]
[354345040,1740436245893,-189.095,0.00013698,2]
[354345042,1740436245902,-13760.90499998,0.00014767,2]
[354345044,1740436245914,-5288.76562879,0.00014767,2]
[354345059,1740436246259,-249.62627858,0.00013698,2]
[354345094,1740436964911,233.271697,9.041e-05,2]
[354345095,1740437149123,-296.64101087,0.0001,2]
[354345096,1740437155090,-223.3942221,0.0001,2]
[354345097,1740437176316,-300.0,9.999e-05,2]
[354345098,1740437176340,-654.0,0.0001,2]
[354345099,1740437212996,-213.96476703,0.0001,2]
[354345100,1740437213020,-1386.0,0.0001,2]
[354345101,1740437213043,-1386.0,0.0001,2]
[354345102,1740437213067,-1386.0,0.0001,2]
[354345103,1740437227096,-166.98,0.00010959,2]
[354345104,1740437227118,-445.36064447,0.00010959,2]
[354345105,1740437243092,-162.23576931,0.00010849,2]
[354345106,1740437243120,-389.55935553,0.00010959,2]
[354345107,1740437243153,-300.0,0.00012654,2]
[354345108,1740437243183,-5669.48291983,0.00012655,2]
[354345109,1740437249100,-469.18260192,0.00012655,2]
[354345110,1740437252129,-306.47088243,0.00012655,2]
[354345115,1740437351191,-300.0,0.00010959,2]
[354345116,1740437351243,-300.0,0.00012539,2]
[354345117,1740437351283,-8236.11679365,0.0001254,2]
[354345118,1740437356097,-1640.5757081,0.0001254,2]
[354345119,1740437357119,-123.30749825,0.0001254,2]
[354345120,1740437357144,-5400.45852583,0.00012655,2]
[354345121,1740437358087,-419.27305439,0.00012655,2]
[354345122,1740437358115,-70.72694561,0.00012924,2]
[354345149,1740437432660,-927.0,0.00011972,2]
[354345159,1740437432838,-573.0,0.00011972,2]
[354345160,1740437432849,-88.11360519,0.00012924,2]
[354345161,1740437432859,-1500.0,0.00013342,2]
[354345162,1740437432868,-19601.91606613,0.00013594,2]
[354345163,1740437432878,-152.39622675,0.00013597,2]
[354345164,1740437432887,-181.41064498,0.00013598,2]
[354345165,1740437432897,-3000.0,0.00013598,2]
[354345166,1740437432906,-300.0,0.00013599,2]
[354345167,1740437432915,-500.0,0.00013673,2]
[354345168,1740437432925,-500.0,0.00013673,2]
[354345169,1740437432934,-500.0,0.00013696,2]
[354345170,1740437432944,-500.0,0.00013696,2]
[354345171,1740437432953,-551.6330217,0.00013696,2]
[354345172,1740437432963,-500.0,0.00013696,2]
[354345173,1740437432974,-500.0,0.00013696,2]
[354345174,1740437432984,-500.0,0.00013696,2]
[354345175,1740437432993,-500.0,0.00013696,2]
[354345176,1740437433003,-500.0,0.00013696,2]
[354345177,1740437433012,-500.0,0.00013696,2]
[354345178,1740437433022,-500.0,0.00013696,2]
[354345179,1740437433033,-500.0,0.00013696,2]
[354345180,1740437433043,-500.0,0.00013696,2]
[354345181,1740437433056,-500.0,0.00013696,2]
[354345182,1740437433068,-500.0,0.00013696,2]
[354345183,1740437433080,-705.57315057,0.00013697,5]
[354345184,1740437433091,-181417.98604272,0.00013697,2]
[354345185,1740437433105,-435.07906485,0.00013697,2]
[354345186,1740437433163,-500.0,0.00013696,2]
[354345187,1740437433175,-500.0,0.00013696,2]
[354345188,1740437433187,-500.0,0.00013696,2]
[354345189,1740437433198,-500.0,0.00013696,2]
[354345190,1740437433210,-1514256.04484064,0.00013697,2]
[354345219,1740437438502,-4592.00064615,0.00013598,2]
[354345220,1740437438512,-500.0,0.00013696,2]
[354345221,1740437438521,-500.0,0.00013696,2]
[354345222,1740437438532,-500.0,0.00013696,2]
[354345223,1740437438542,-500.0,0.00013696,2]
[354345224,1740437438551,-500.0,0.00013696,2]
[354345225,1740437438560,-500.0,0.00013696,2]
[354345226,1740437438569,-427.40678675,0.00013696,2]
[354345227,1740437438579,-500.0,0.00013696,2]
[354345228,1740437438589,-500.0,0.00013696,2]
[354345229,1740437438597,-500.0,0.00013696,2]
[354345230,1740437438607,-500.0,0.00013696,2]
[354345231,1740437438616,-500.0,0.00013696,2]
[354345232,1740437438625,-500.0,0.00013696,2]
[354345233,1740437438638,-500.0,0.00013696,2]
[354345234,1740437438648,-500.0,0.00013696,2]
[354345235,1740437438658,-500.0,0.00013696,2]
[354345236,1740437438667,-500.0,0.00013696,2]
[354345237,1740437438676,-496.45267054,0.00013696,2]
[354345239,1740437438686,-500.0,0.00013696,2]
[354345241,1740437438695,-500.0,0.00013696,2]
[354345242,1740437438706,-500.0,0.00013696,2]
[354345243,1740437438716,-500.0,0.00013696,2]
[354345244,1740437438726,-500.0,0.00013696,2]
[354345245,1740437438736,-500.0,0.00013696,2]
[354345246,1740437438747,-500.0,0.00013696,2]
[354345247,1740437438756,-500.0,0.00013696,2]
[354345248,1740437438766,-500.0,0.00013696,2]
[354345249,1740437438775,-23274.08577146,0.00013697,2]
[354345250,1740437438787,-67831.38506161,0.00013697,2]
[354345251,1740437438799,-49877.86004253,0.00013697,2]
[354345252,1740437438810,-239641.25261307,0.00013697,2]
[354345253,1740437438822,-2851.38972336,0.00013697,2]
[354345254,1740437439134,-68.03784939,0.00013697,2]
[354345255,1740437439147,-9278.0,0.00013697,2]
[354345256,1740437439158,-539.67050219,0.00013697,2]
[354345257,1740437439203,-34.05232027,0.00013697,2]
[354345258,1740437439215,-1239.28050636,0.00013697,2]
[354345532,1740437443552,-547.67952617,0.00013598,2]
[354345538,1740437443636,-2452.32047383,0.00013598,2]
[354345540,1740437443646,-768.15727988,0.00013697,2]
[354345559,1740437444208,-23170.0,0.00013697,2]
[354345560,1740437444221,-3492.5248122,0.00013697,2]
[354345568,1740437444359,-4403.21035412,0.00013697,2]
[354345593,1740437446587,-290.18000002,0.00013697,2]
[354345595,1740437446602,-450001.64529332,0.00013697,2]
[354345601,1740437446649,-21054.8503917,0.00013697,2]
[354345609,1740437446718,-484998.8,0.00013697,2]
[354345611,1740437446730,-27866.4,0.00013697,2]
[354345641,1740437999050,269.301624,9.041e-05,2]
[354345643,1740438028724,200.0,0.00018,120]
[354345644,1740438330104,-354.26660958,0.00010423,2]
[354345645,1740438330128,-140.53741024,0.00010528,2]
[354345646,1740438425087,-213.72919934,0.00010423,2]
[354345647,1740438425110,-24.36937489,0.00010959,2]
[354345648,1740438431084,-425.63062511,0.00010959,2]
[354345649,1740438431107,-1200.0,0.00011972,2]
[354345650,1740438431132,-300.0,0.00012444,2]
[354345651,1740438431155,-178.67956331,0.00012445,2]
[354345652,1740438435082,-174.43293844,0.00012445,2]
[354345653,1740438545107,-1100.0,0.00011972,2]
[354345654,1740438545129,-170.69405444,0.00012321,2]
[354345655,1740438545152,-300.0,0.00012444,2]
[354345656,1740438545176,-24017.76937516,0.00012445,2]
[354345657,1740438545210,-529.11812309,0.00012445,2]
[354345658,1740438545232,-261.2219968,0.00012614,2]
[354345659,1740438553254,-5000.0,0.00017887,14]
[354345660,1740438553285,-995000.0,0.00018,15]
[354345661,1740438559266,-1000000.0,0.00018,15]
[354345662,1740438571471,-336479.95361869,0.00018,15]
[354345663,1740438571498,-663520.04638131,0.00018,15]
[354345664,1740438577294,-1463385.50715065,0.00018,15]
[354345665,1740438577319,-156307.92234237,0.00018,15]
[354345666,1740438577346,-593064.11881263,0.00018,15]
[354345667,1740438577371,-199382.09188025,0.00018,15]
[354345668,1740438577396,-2472483.60393491,0.00018,15]
[354345669,1740438577422,-804901.34357249,0.00018,15]
[354345670,1740438577448,-271202.33714771,0.00018,15]
[354345671,1740438577474,-188885.5525473,0.00018,15]
[354345672,1740438577499,-155.0,0.00018,30]
[354345673,1740438577546,-207510.05833683,0.00018,15]
[354345674,1740438577589,-113717.69930963,0.00018,15]
[354345675,1740438577636,-1750314.34339318,0.00018,15]
[354345676,1740438577680,-1778690.42157205,0.00018,15]
[354345677,1740438599876,-578435.09646776,0.00018,15]
[354345678,1740438599904,-1010384.86029153,0.00018,15]
[354345679,1740438599930,-141207.56304545,0.00018,15]
[354345680,1740438599956,-138353.97727272,0.00018,15]
[354345681,1740438599981,-310490.99750104,0.00018,15]
[354345682,1740438600180,-945488.58540074,0.00018,15]
[354345683,1740438600208,-959318.98659943,0.00018,15]
[354345684,1740438600241,-156.858131,0.00018,15]
[354345685,1740438600267,-10000.0,0.0001805,60]
[354345686,1740438600295,-554.0,0.0001811,60]
[354345687,1740438600321,-2085.97,0.00018114,60]
[354345688,1740438600352,-10000.0,0.00018136,60]
[354345689,1740438600379,-10000.0,0.0001815,60]
[354345690,1740438600407,-119628.0,0.00019,20]
[354345691,1740438600434,-3431.20740425,0.00019,20]
[354345692,1740438600461,-5000.0,0.00019,30]
[354345693,1740438600487,-228.0,0.00019,60]
[354345694,1740438600513,-3000.0,0.00019178,30]
[354345695,1740438600538,-3000.0,0.00019178,30]
[354345696,1740438600563,-2170.66725712,0.00019178,30]
[354345697,1740438600588,-56970.9952117,0.00019178,11]
[354345698,1740438600614,-151.0,0.00019452,15]
[354345699,1740438600639,-109756.25764617,0.00019484,10]
[354345700,1740438600663,-200.0,0.00019507,120]
[354345701,1740438600690,-69981.32885743,0.0002,20]
[354345702,1740438600717,-234.69859519,0.0002,120]
[354345703,1740438600741,-2000.0,0.0002,90]
[354345704,1740438600766,-200.0,0.0002,120]
[354345705,1740438600790,-4910.0,0.0002,30]
[354345706,1740438600816,-19601.91606613,0.0002,10]
[354345707,1740438600843,-38487.96790068,0.00020514,120]
[354345708,1740438600868,-300.53349243,0.00020514,120]
[354345709,1740438600893,-284.73262254,0.00020514,120]
[354345710,1740438600917,-1000.0,0.00020548,120]
[354345711,1740438600942,-1875.35,0.0002071,20]
[354345712,1740438600970,-2000.0,0.00021,90]
[354345713,1740438600995,-1708.72648571,0.00021,30]
[354345714,1740438601029,-600.0,0.00021,60]
[354345715,1740438601055,-200.0,0.00021014,120]
[354345716,1740438601082,-1021.56,0.000212,120]
[354345717,1740438601108,-2633.09100686,0.000212,30]
[354345718,1740438601136,-694.72,0.00021643,10]
[354345719,1740438601161,-169.68299623,0.00021878,32]
[354345720,1740438601188,-1100.0,0.00021917,30]
[354345721,1740438601212,-1100.0,0.00021917,30]
[354345722,1740438601236,-936.80259787,0.00021917,30]
[354345723,1740438601262,-3983.3360298,0.00022,30]
[354345724,1740438601289,-50000.0,0.00022,15]
[354345725,1740438601316,-162.629999,0.00022,10]
[354345726,1740438601346,-2000.0,0.00022,90]
[354345727,1740438601373,-500.0,0.00022,120]
[354345728,1740438601399,-10000.0,0.00022,30]
[354345729,1740438601430,-200.0,0.00022521,120]
[354345730,1740438601456,-33117.23,0.000229,14]
[354345731,1740438601482,-2673.19108007,0.00023,30]
[354345732,1740438601510,-2000.0,0.00023,120]
[354345733,1740438601537,-500.0,0.00023,120]
[354345734,1740438601562,-340.25,0.00023,15]
[354345735,1740438601588,-694.72,0.00023013,12]
[354345736,1740438601614,-988.98736986,0.00024,10]
[354345737,1740438601639,-439.00063517,0.00024,120]
[354345738,1740438601664,-250.0,0.00024,120]
[354345739,1740438601691,-2000.0,0.00024,120]
[354345740,1740438601834,-151.0,0.00024,14]
[354345741,1740438601862,-10000.0,0.00024,30]
[354345742,1740438601888,-200.0,0.00024027,120]
[354345743,1740438601914,-1000.0,0.000242,120]
[354345744,1740438601940,-694.72,0.00024383,14]
[354345745,1740438601966,-33117.23,0.000245,14]
[354345746,1740438601994,-6390.0,0.00025,10]
[354345747,1740438602023,-179.80945514,0.00025,30]
[354345748,1740438602051,-200.0,0.00025,120]
[354345749,1740438602081,-2000.0,0.00025,120]
[354345750,1740438602109,-165.17531766,0.00025,120]
[354345751,1740438602135,-1198.6136623,0.00025,30]
[354345752,1740438602162,-50056.37353271,0.00025,30]
[354345753,1740438602188,-19601.91606613,0.00025,30]
[354345754,1740438602214,-19601.91606613,0.00025,30]
[354345755,1740438602242,-11167.87,0.000252,30]
[354345756,1740438602267,-151.0,0.00025205,120]
[354345757,1740438602294,-317.31424343,0.000253,10]
[354345758,1740438602321,-200.0,0.00025534,120]
[354345759,1740438602349,-694.72,0.00025753,16]
[354345760,1740438602376,-2847.31,0.000259,14]
[354345761,1740438602402,-38028.95144389,0.00026,10]
[354345762,1740438602428,-500.0,0.00026,120]
[354345763,1740438602455,-19601.91606613,0.00026,120]
[354345764,1740438602481,-19601.91606613,0.00026,120]
[354345765,1740438602508,-64296.58120712,0.000261,60]
[354345766,1740438602535,-538.32517606,0.000265,60]
[354345767,1740438602561,-3465.67995209,0.00027,120]
[354345768,1740438602586,-633.95564555,0.00027,120]
[354345769,1740438602613,-1150.20446,0.00027,120]
[354345770,1740438602638,-1150.20446,0.00027,120]
[354345771,1740438602662,-1150.20446,0.00027,120]
[354345772,1740438602687,-1150.20446,0.00027,120]
[354345773,1740438602711,-1150.20446,0.00027,120]
[354345774,1740438602735,-1150.20446,0.00027,120]
[354345775,1740438602760,-1150.20446,0.00027,120]
[354345776,1740438602785,-1150.20446,0.00027,120]
[354345777,1740438602810,-1150.20449,0.00027,120]
[354345778,1740438602835,-1377.98,0.00027,30]
[354345779,1740438602862,-261.99942,0.00027,120]
[354345780,1740438602887,-493.0,0.00027,120]
[354345781,1740438602913,-1486.45,0.00027,14]